[Event "*** Titled Tuesday Blitz"]
[Site "Chess.com"]
[Date "2021.04.27"]
[Round "1"]
[White "ri4mi"]
[Black "Hypercar"]
[Result "0-1"]
[WhiteElo "2289"]
[BlackElo "2612"]
[TimeControl "180+1"]
[EndTime "10:06:14 PDT"]
[Termination "Hypercar won by checkmate"]

1. e4 {[%clk 0:02:56.6]} 1... c6 {[%clk 0:03:00.3]} 2. d4 {[%clk 0:02:55.6]}
2... d5 {[%clk 0:03:00.4]} 3. e5 {[%clk 0:02:56.3]} 3... c5 {[%clk 0:02:59.5]}
4. dxc5 {[%clk 0:02:55.1]} 4... Nc6 {[%clk 0:02:58.9]} 5. Nf3 {[%clk 0:02:54.5]}
5... Bg4 {[%clk 0:02:58.4]} 6. Bb5 {[%clk 0:02:54.7]} 6... e6 {[%clk 0:02:58.1]}
7. Be3 {[%clk 0:02:54.4]} 7... Ne7 {[%clk 0:02:53.3]} 8. c3 {[%clk 0:02:45.7]}
8... Nf5 {[%clk 0:02:51.5]} 9. Bd4 {[%clk 0:02:40.6]} 9... a6 {[%clk 0:02:50.2]}
10. Bxc6+ {[%clk 0:02:39.3]} 10... bxc6 {[%clk 0:02:50.1]} 11. O-O {[%clk
0:02:39.1]} 11... Qc7 {[%clk 0:02:46.6]} 12. h3 {[%clk 0:02:35.2]} 12... Bxf3
{[%clk 0:02:45.2]} 13. Qxf3 {[%clk 0:02:36.1]} 13... Be7 {[%clk 0:02:45.6]} 14.
Nd2 {[%clk 0:02:27.8]} 14... O-O {[%clk 0:02:45.5]} 15. Qe2 {[%clk 0:02:05.3]}
15... a5 {[%clk 0:02:42.6]} 16. g4 {[%clk 0:02:01.5]} 16... Nh4 {[%clk
0:02:41.8]} 17. f4 {[%clk 0:01:57.9]} 17... Rab8 {[%clk 0:02:36.6]} 18. Rab1
{[%clk 0:01:49.6]} 18... Kh8 {[%clk 0:02:28.5]} 19. Nf3 {[%clk 0:01:26.8]} 19...
Nxf3+ {[%clk 0:02:04.9]} 20. Rxf3 {[%clk 0:01:27.7]} 20... f5 {[%clk 0:02:05.6]}
21. b4 {[%clk 0:01:15.7]} 21... Qa7 {[%clk 0:01:57]} 22. Kg2 {[%clk 0:00:57.2]}
22... axb4 {[%clk 0:01:46.9]} 23. cxb4 {[%clk 0:00:58.1]} 23... Ra8 {[%clk
0:01:47.3]} 24. Rb2 {[%clk 0:00:51.4]} 24... Qa4 {[%clk 0:01:46.2]} 25. Kg3
{[%clk 0:00:38.2]} 25... Rab8 {[%clk 0:01:38.3]} 26. Rfb3 {[%clk 0:00:33.7]}
26... g5 {[%clk 0:01:35.1]} 27. fxg5 {[%clk 0:00:23.5]} 27... fxg4 {[%clk
0:01:35]} 28. Qxg4 {[%clk 0:00:20.6]} 28... Rf5 {[%clk 0:01:34.9]} 29. h4 {[%clk
0:00:15.5]} 29... Rbf8 {[%clk 0:01:34.8]} 30. a3 {[%clk 0:00:13.6]} 30... Qb5
{[%clk 0:01:34.3]} 31. Re3 {[%clk 0:00:12.1]} 31... Qf1 {[%clk 0:01:33.5]} 32.
Rg2 {[%clk 0:00:11.9]} 32... Qh1 {[%clk 0:01:19.4]} 33. Ree2 {[%clk 0:00:10.2]}
33... h6 {[%clk 0:01:17.7]} 34. Ref2 {[%clk 0:00:08.2]} 34... hxg5 {[%clk
0:01:14.7]} 35. Rxf5 {[%clk 0:00:07.9]} 35... Rxf5 {[%clk 0:01:13]} 36. Qh5+
{[%clk 0:00:07.8]} 36... Kg7 {[%clk 0:01:13.2]} 37. Kg4 {[%clk 0:00:05.5]} 37...
Qxg2# {[%clk 0:01:12.1]} 0-1

[Event "*** Titled Tuesday Blitz"]
[Site "Chess.com"]
[Date "2021.04.27"]
[Round "1"]
[White "Julianos82"]
[Black "olksuna"]
[Result "0-1"]
[WhiteElo "2325"]
[BlackElo "2659"]
[TimeControl "180+1"]
[EndTime "10:06:17 PDT"]
[Termination "olksuna won by resignation"]

1. d4 {[%clk 0:03:00.3]} 1... Nf6 {[%clk 0:02:59.6]} 2. Nf3 {[%clk 0:02:59.7]}
2... e6 {[%clk 0:02:59.3]} 3. Bg5 {[%clk 0:02:59.3]} 3... h6 {[%clk 0:02:55.4]}
4. Bh4 {[%clk 0:02:58.6]} 4... c5 {[%clk 0:02:55.5]} 5. e3 {[%clk 0:02:56]} 5...
b6 {[%clk 0:02:55.6]} 6. Nbd2 {[%clk 0:02:51.1]} 6... Bb7 {[%clk 0:02:55.6]} 7.
Bd3 {[%clk 0:02:51.2]} 7... Be7 {[%clk 0:02:55.1]} 8. c3 {[%clk 0:02:50.5]} 8...
O-O {[%clk 0:02:53.7]} 9. O-O {[%clk 0:02:50.3]} 9... d6 {[%clk 0:02:51]} 10. a4
{[%clk 0:02:50.4]} 10... a6 {[%clk 0:02:50.8]} 11. Qe2 {[%clk 0:02:43.7]} 11...
Nbd7 {[%clk 0:02:49.5]} 12. b4 {[%clk 0:02:40.1]} 12... cxd4 {[%clk 0:02:43.5]}
13. cxd4 {[%clk 0:02:34.8]} 13... Nd5 {[%clk 0:02:42.9]} 14. Bxe7 {[%clk
0:02:25.8]} 14... Qxe7 {[%clk 0:02:43.8]} 15. b5 {[%clk 0:01:55.4]} 15... a5
{[%clk 0:02:41.8]} 16. Rfc1 {[%clk 0:01:45.6]} 16... Rac8 {[%clk 0:02:37.4]} 17.
e4 {[%clk 0:01:26.2]} 17... Nb4 {[%clk 0:02:32.5]} 18. Nb3 {[%clk 0:01:19.3]}
18... e5 {[%clk 0:02:22.5]} 19. d5 {[%clk 0:01:15.7]} 19... Nc5 {[%clk
0:01:57.3]} 20. Nxc5 {[%clk 0:01:15.5]} 20... bxc5 {[%clk 0:01:57.5]} 21. g3
{[%clk 0:01:12.3]} 21... g6 {[%clk 0:01:52.6]} 22. Qe3 {[%clk 0:01:09.4]} 22...
Kg7 {[%clk 0:01:52]} 23. Nh4 {[%clk 0:01:08]} 23... Qg5 {[%clk 0:01:45.5]} 24.
Qe2 {[%clk 0:01:02.8]} 24... f5 {[%clk 0:01:42.5]} 25. Rc3 {[%clk 0:00:50.9]}
25... fxe4 {[%clk 0:01:33.6]} 26. Bxe4 {[%clk 0:00:51.8]} 26... Rf6 {[%clk
0:01:25.5]} 27. Rd1 {[%clk 0:00:48.8]} 27... Rcf8 {[%clk 0:01:20.9]} 28. f3
{[%clk 0:00:48.8]} 28... h5 {[%clk 0:01:09.2]} 29. Qe3 {[%clk 0:00:47.7]} 29...
Qxe3+ {[%clk 0:01:04.8]} 30. Rxe3 {[%clk 0:00:48.6]} 30... g5 {[%clk 0:01:05.3]}
31. Ng2 {[%clk 0:00:48.8]} 31... Rc8 {[%clk 0:01:02.6]} 32. h4 {[%clk
0:00:45.6]} 32... g4 {[%clk 0:00:53]} 33. Rf1 {[%clk 0:00:43.5]} 33... c4 {[%clk
0:00:51.9]} 34. fxg4 {[%clk 0:00:42.5]} 34... Rxf1+ {[%clk 0:00:51.1]} 35. Kxf1
{[%clk 0:00:43.4]} 35... hxg4 {[%clk 0:00:49.5]} 36. Re1 {[%clk 0:00:41.3]}
36... Bxd5 {[%clk 0:00:45.3]} 37. Bxd5 {[%clk 0:00:40.2]} 37... Nxd5 {[%clk
0:00:46.2]} 38. Rd1 {[%clk 0:00:40.5]} 38... c3 {[%clk 0:00:46.2]} 39. Ne1
{[%clk 0:00:39.3]} 39... Ne3+ {[%clk 0:00:43.7]} 0-1

[Event "*** Titled Tuesday Blitz"]
[Site "Chess.com"]
[Date "2021.04.27"]
[Round "1"]
[White "VladimirBugayev"]
[Black "alexrustemov"]
[Result "0-1"]
[WhiteElo "2256"]
[BlackElo "2585"]
[TimeControl "180+1"]
[EndTime "10:06:17 PDT"]
[Termination "alexrustemov won on time"]

1. e4 {[%clk 0:03:00.4]} 1... e6 {[%clk 0:02:58.8]} 2. d4 {[%clk 0:03:00]} 2...
d5 {[%clk 0:02:59.4]} 3. Bd3 {[%clk 0:03:00]} 3... dxe4 {[%clk 0:02:57.6]} 4.
Bxe4 {[%clk 0:02:59.8]} 4... Nf6 {[%clk 0:02:57.8]} 5. Bf3 {[%clk 0:02:59.7]}
5... c5 {[%clk 0:02:57.3]} 6. Ne2 {[%clk 0:03:00.1]} 6... Nc6 {[%clk 0:02:56.4]}
7. Be3 {[%clk 0:03:00.6]} 7... cxd4 {[%clk 0:02:56.1]} 8. Nxd4 {[%clk 0:03:01]}
8... Ne5 {[%clk 0:02:55.9]} 9. Nc3 {[%clk 0:03:01.5]} 9... Be7 {[%clk
0:02:53.5]} 10. Qe2 {[%clk 0:03:00.2]} 10... O-O {[%clk 0:02:51.8]} 11. O-O-O
{[%clk 0:02:59.8]} 11... Bd7 {[%clk 0:02:51]} 12. Bxb7 {[%clk 0:02:29.9]} 12...
Rb8 {[%clk 0:02:49.4]} 13. Nc6 {[%clk 0:02:30.5]} 13... Nxc6 {[%clk 0:02:39.7]}
14. Bxc6 {[%clk 0:02:29.7]} 14... Qc7 {[%clk 0:02:33.3]} 15. Bxd7 {[%clk
0:02:25.1]} 15... Nxd7 {[%clk 0:02:34.2]} 16. Qd3 {[%clk 0:01:47.3]} 16... Nf6
{[%clk 0:02:26.8]} 17. Nb5 {[%clk 0:01:36.3]} 17... Qa5 {[%clk 0:02:22.8]} 18.
Nc3 {[%clk 0:01:05.4]} 18... Rfc8 {[%clk 0:02:20]} 19. Bd4 {[%clk 0:00:53]}
19... e5 {[%clk 0:01:49.9]} 20. Bxe5 {[%clk 0:00:46.1]} 20... Qxe5 {[%clk
0:01:48.1]} 21. Rhe1 {[%clk 0:00:46]} 21... Qc7 {[%clk 0:01:32.9]} 22. Qg3
{[%clk 0:00:34.8]} 22... Qb7 {[%clk 0:01:29.7]} 23. Na4 {[%clk 0:00:19.3]} 23...
Qb4 {[%clk 0:01:24.9]} 24. b3 {[%clk 0:00:17.8]} 24... Qa3+ {[%clk 0:01:05.2]}
25. Kb1 {[%clk 0:00:16.5]} 25... Bb4 {[%clk 0:01:01.5]} 26. c3 {[%clk
0:00:10.7]} 26... Bf8 {[%clk 0:01:00.8]} 27. Qf4 {[%clk 0:00:05.4]} 27... h6
{[%clk 0:00:50.6]} 0-1

[Event "*** Titled Tuesday Blitz"]
[Site "Chess.com"]
[Date "2021.04.27"]
[Round "1"]
[White "karwowskikacper"]
[Black "TimofeevAr"]
[Result "0-1"]
[WhiteElo "2427"]
[BlackElo "2827"]
[TimeControl "180+1"]
[EndTime "10:06:18 PDT"]
[Termination "TimofeevAr won on time"]

1. e4 {[%clk 0:03:00.1]} 1... d5 {[%clk 0:02:59.2]} 2. exd5 {[%clk 0:02:51.6]}
2... Nf6 {[%clk 0:02:59.1]} 3. Nc3 {[%clk 0:02:52.5]} 3... Nxd5 {[%clk
0:02:58.6]} 4. Nxd5 {[%clk 0:02:50.8]} 4... Qxd5 {[%clk 0:02:58.1]} 5. Nf3
{[%clk 0:02:51.7]} 5... g6 {[%clk 0:02:56.4]} 6. Be2 {[%clk 0:02:45.8]} 6... Bg7
{[%clk 0:02:55.9]} 7. O-O {[%clk 0:02:43.7]} 7... O-O {[%clk 0:02:54.8]} 8. c3
{[%clk 0:02:32]} 8... c5 {[%clk 0:02:43.4]} 9. Re1 {[%clk 0:02:19.8]} 9... Nc6
{[%clk 0:02:41.7]} 10. h3 {[%clk 0:02:11.7]} 10... Bf5 {[%clk 0:02:38.5]} 11.
Qa4 {[%clk 0:01:47.9]} 11... Rad8 {[%clk 0:02:29]} 12. Bc4 {[%clk 0:01:39.7]}
12... Qd6 {[%clk 0:02:28.5]} 13. d4 {[%clk 0:01:17.8]} 13... cxd4 {[%clk
0:02:25.2]} 14. cxd4 {[%clk 0:01:18.7]} 14... Nxd4 {[%clk 0:02:21.6]} 15. Nxd4
{[%clk 0:01:19.6]} 15... Bxd4 {[%clk 0:02:20.8]} 16. Bh6 {[%clk 0:01:04.7]}
16... Bg7 {[%clk 0:01:58]} 17. Bxg7 {[%clk 0:01:02.3]} 17... Kxg7 {[%clk
0:01:57.9]} 18. Rad1 {[%clk 0:01:03]} 18... Qc7 {[%clk 0:01:40.5]} 19. Rc1
{[%clk 0:00:41.1]} 19... Rd4 {[%clk 0:01:21.8]} 20. Qb3 {[%clk 0:00:20.8]} 20...
Qd7 {[%clk 0:01:03.6]} 21. Bb5 {[%clk 0:00:16.3]} 21... Qd6 {[%clk 0:01:01.6]}
22. Bf1 {[%clk 0:00:16.9]} 22... b6 {[%clk 0:01:00.4]} 23. Qe3 {[%clk
0:00:12.5]} 23... e6 {[%clk 0:00:49.3]} 24. Rc3 {[%clk 0:00:11.2]} 24... h5
{[%clk 0:00:48.3]} 25. Ra3 {[%clk 0:00:10.5]} 25... a5 {[%clk 0:00:47.6]} 0-1

[Event "*** Titled Tuesday Blitz"]
[Site "Chess.com"]
[Date "2021.04.27"]
[Round "1"]
[White "c_r_e_e_p_e_r"]
[Black "CSB7"]
[Result "0-1"]
[WhiteElo "2399"]
[BlackElo "2732"]
[TimeControl "180+1"]
[EndTime "10:06:24 PDT"]
[Termination "CSB7 won by resignation"]

1. d4 {[%clk 0:02:44.5]} 1... Nf6 {[%clk 0:02:58.3]} 2. c4 {[%clk 0:02:43]} 2...
g6 {[%clk 0:02:58]} 3. f3 {[%clk 0:02:42.7]} 3... d5 {[%clk 0:02:47.4]} 4. cxd5
{[%clk 0:02:43.6]} 4... Nxd5 {[%clk 0:02:48]} 5. e4 {[%clk 0:02:44]} 5... Nb6
{[%clk 0:02:48.3]} 6. Nc3 {[%clk 0:02:44.5]} 6... Bg7 {[%clk 0:02:48.9]} 7. Be3
{[%clk 0:02:45.2]} 7... O-O {[%clk 0:02:48.7]} 8. Qd2 {[%clk 0:02:45.9]} 8...
Nc6 {[%clk 0:02:49.2]} 9. O-O-O {[%clk 0:02:46.2]} 9... Qd6 {[%clk 0:02:49.8]}
10. Kb1 {[%clk 0:02:45.6]} 10... Rd8 {[%clk 0:02:48.9]} 11. Nb5 {[%clk
0:02:45.6]} 11... Qd7 {[%clk 0:02:49.4]} 12. d5 {[%clk 0:02:45.9]} 12... a6
{[%clk 0:02:49.9]} 13. Nc3 {[%clk 0:02:45.7]} 13... Ne5 {[%clk 0:02:41.9]} 14.
Qc1 {[%clk 0:02:45.4]} 14... Qe8 {[%clk 0:02:39.4]} 15. Bd4 {[%clk 0:02:33.4]}
15... e6 {[%clk 0:02:34.1]} 16. f4 {[%clk 0:02:03.8]} 16... Ng4 {[%clk
0:01:54.1]} 17. Bxg7 {[%clk 0:02:04.2]} 17... Kxg7 {[%clk 0:01:54.6]} 18. Qd2
{[%clk 0:02:04.7]} 18... exd5 {[%clk 0:01:50.1]} 19. exd5 {[%clk 0:02:05]} 19...
Qe3 {[%clk 0:01:22.2]} 20. Nf3 {[%clk 0:00:42.7]} 20... Qxd2 {[%clk 0:01:09.5]}
21. Rxd2 {[%clk 0:00:43.6]} 21... Ne3 {[%clk 0:01:09.4]} 22. d6 {[%clk
0:00:19.3]} 22... Bf5+ {[%clk 0:01:05.1]} 23. Kc1 {[%clk 0:00:13.2]} 23... Rxd6
{[%clk 0:01:03.1]} 24. Rxd6 {[%clk 0:00:12.6]} 24... cxd6 {[%clk 0:01:04]} 25.
Nd4 {[%clk 0:00:12.6]} 25... Rc8 {[%clk 0:00:57.2]} 26. Nxf5+ {[%clk 0:00:04.5]}
26... Nxf5 {[%clk 0:00:55.7]} 27. Kd2 {[%clk 0:00:02.8]} 27... d5 {[%clk
0:00:49.1]} 28. Bd3 {[%clk 0:00:01.7]} 28... Nd6 {[%clk 0:00:46.7]} 29. Kc2
{[%clk 0:00:01.7]} 29... d4 {[%clk 0:00:46.6]} 0-1

[Event "*** Titled Tuesday Blitz"]
[Site "Chess.com"]
[Date "2021.04.27"]
[Round "1"]
[White "korkmaz16"]
[Black "Arystanner"]
[Result "0-1"]
[WhiteElo "2425"]
[BlackElo "2822"]
[TimeControl "180+1"]
[EndTime "10:06:25 PDT"]
[Termination "Arystanner won by resignation"]

1. e4 {[%clk 0:03:00.9]} 1... c5 {[%clk 0:02:57.6]} 2. Nc3 {[%clk 0:02:59.2]}
2... e6 {[%clk 0:02:57.3]} 3. f4 {[%clk 0:02:58.7]} 3... d5 {[%clk 0:02:56.6]}
4. Nf3 {[%clk 0:02:58.4]} 4... Nc6 {[%clk 0:02:56.2]} 5. Bb5 {[%clk 0:02:56.2]}
5... Nf6 {[%clk 0:02:55]} 6. exd5 {[%clk 0:02:50.1]} 6... exd5 {[%clk
0:02:52.8]} 7. Qe2+ {[%clk 0:02:48.5]} 7... Be7 {[%clk 0:02:52.4]} 8. Ne5 {[%clk
0:02:47.4]} 8... Bd7 {[%clk 0:02:50.6]} 9. Nxd7 {[%clk 0:02:46.5]} 9... Qxd7
{[%clk 0:02:49.6]} 10. O-O {[%clk 0:02:44.7]} 10... O-O {[%clk 0:02:49.2]} 11.
d3 {[%clk 0:02:42.8]} 11... Rfe8 {[%clk 0:02:47.2]} 12. f5 {[%clk 0:02:24]}
12... a6 {[%clk 0:02:42.6]} 13. Bxc6 {[%clk 0:02:23.1]} 13... Qxc6 {[%clk
0:02:43.5]} 14. Qf3 {[%clk 0:02:19.6]} 14... h6 {[%clk 0:02:40.3]} 15. Bf4
{[%clk 0:02:10.4]} 15... Bd6 {[%clk 0:02:32.8]} 16. Rae1 {[%clk 0:02:06.2]}
16... b5 {[%clk 0:02:30.2]} 17. Bxd6 {[%clk 0:02:05.6]} 17... Qxd6 {[%clk
0:02:30.5]} 18. Ne2 {[%clk 0:02:01.6]} 18... Qe5 {[%clk 0:02:20.7]} 19. c3
{[%clk 0:01:57.2]} 19... b4 {[%clk 0:01:56.3]} 20. Qg3 {[%clk 0:01:42.8]} 20...
Qxg3 {[%clk 0:01:47.8]} 21. Nxg3 {[%clk 0:01:42.4]} 21... bxc3 {[%clk
0:01:47.9]} 22. bxc3 {[%clk 0:01:42.8]} 22... Rab8 {[%clk 0:01:45.9]} 23. Rb1
{[%clk 0:01:42.2]} 23... Rxb1 {[%clk 0:01:25.1]} 24. Rxb1 {[%clk 0:01:37.6]}
24... Re3 {[%clk 0:01:26]} 25. Rd1 {[%clk 0:01:32.6]} 25... c4 {[%clk
0:01:26.1]} 26. dxc4 {[%clk 0:01:27.2]} 26... dxc4 {[%clk 0:01:26.5]} 27. Rd6
{[%clk 0:01:26]} 27... Rxc3 {[%clk 0:01:20.6]} 28. Rxa6 {[%clk 0:01:25.2]} 28...
Ng4 {[%clk 0:01:12.8]} 29. Ne2 {[%clk 0:00:58.9]} 29... Rc2 {[%clk 0:01:08.7]}
30. h3 {[%clk 0:00:59]} 30... Ne3 {[%clk 0:01:00.7]} 31. Nf4 {[%clk 0:00:26.4]}
31... Nxf5 {[%clk 0:00:59.2]} 32. Ra5 {[%clk 0:00:21]} 32... Nh4 {[%clk
0:00:54.4]} 33. Rc5 {[%clk 0:00:15.3]} 33... g5 {[%clk 0:00:54.1]} 34. g3 {[%clk
0:00:14.9]} 34... Nf3+ {[%clk 0:00:53.6]} 0-1

[Event "*** Titled Tuesday Blitz"]
[Site "Chess.com"]
[Date "2021.04.27"]
[Round "1"]
[White "Love_craft"]
[Black "GM4life"]
[Result "1-0"]
[WhiteElo "2554"]
[BlackElo "2222"]
[TimeControl "180+1"]
[EndTime "10:06:25 PDT"]
[Termination "Love_craft won on time"]

1. Nf3 {[%clk 0:02:55.6]} 1... d5 {[%clk 0:02:58.8]} 2. g3 {[%clk 0:02:54.7]}
2... Nf6 {[%clk 0:02:59.3]} 3. Bg2 {[%clk 0:02:54.3]} 3... e6 {[%clk 0:02:58.7]}
4. O-O {[%clk 0:02:53.3]} 4... Be7 {[%clk 0:02:59.4]} 5. d3 {[%clk 0:02:49.7]}
5... O-O {[%clk 0:03:00]} 6. Nbd2 {[%clk 0:02:48.8]} 6... c5 {[%clk 0:03:00.4]}
7. e4 {[%clk 0:02:48.1]} 7... Nc6 {[%clk 0:03:01]} 8. e5 {[%clk 0:02:47.5]} 8...
Nd7 {[%clk 0:03:00.4]} 9. Re1 {[%clk 0:02:48.4]} 9... Qc7 {[%clk 0:03:00.7]} 10.
Qe2 {[%clk 0:02:47.1]} 10... b5 {[%clk 0:03:01.1]} 11. h4 {[%clk 0:02:46.5]}
11... h6 {[%clk 0:03:00.9]} 12. Nf1 {[%clk 0:02:46.2]} 12... a5 {[%clk
0:03:00.4]} 13. N1h2 {[%clk 0:02:46.3]} 13... Re8 {[%clk 0:02:59]} 14. Ng4
{[%clk 0:02:46.4]} 14... Bf8 {[%clk 0:02:58.8]} 15. Bf4 {[%clk 0:02:45.9]} 15...
Bb7 {[%clk 0:02:55.6]} 16. Qd2 {[%clk 0:02:40.2]} 16... Kh7 {[%clk 0:02:52.7]}
17. c3 {[%clk 0:02:32.8]} 17... a4 {[%clk 0:02:49.1]} 18. a3 {[%clk 0:02:31]}
18... b4 {[%clk 0:02:43.2]} 19. cxb4 {[%clk 0:02:29.7]} 19... cxb4 {[%clk
0:02:43]} 20. d4 {[%clk 0:02:26.8]} 20... Ba6 {[%clk 0:02:39.8]} 21. Bf1 {[%clk
0:02:24.5]} 21... Bxf1 {[%clk 0:02:39]} 22. Rxf1 {[%clk 0:02:25.4]} 22... Qb6
{[%clk 0:02:20.3]} 23. Kg2 {[%clk 0:02:24.7]} 23... Rec8 {[%clk 0:02:13.7]} 24.
Rh1 {[%clk 0:02:16.3]} 24... Rab8 {[%clk 0:01:57]} 25. Ng5+ {[%clk 0:02:14]}
25... Kg8 {[%clk 0:01:49.6]} 26. Qd3 {[%clk 0:02:12.6]} 26... g6 {[%clk
0:01:43.9]} 27. Nxe6 {[%clk 0:02:06]} 27... Ncxe5 {[%clk 0:01:27.1]} 28. dxe5
{[%clk 0:01:47.4]} 28... Qxe6 {[%clk 0:01:25.8]} 29. Nxh6+ {[%clk 0:01:47.4]}
29... Bxh6 {[%clk 0:01:25.4]} 30. Bxh6 {[%clk 0:01:48.3]} 30... Nxe5 {[%clk
0:01:25.6]} 31. Qe2 {[%clk 0:01:34.9]} 31... d4 {[%clk 0:01:17]} 32. Rae1 {[%clk
0:01:25]} 32... Qd5+ {[%clk 0:01:09.8]} 33. Qe4 {[%clk 0:01:24.7]} 33... Qxe4+
{[%clk 0:00:54.9]} 34. Rxe4 {[%clk 0:01:25.6]} 34... bxa3 {[%clk 0:00:22.3]} 35.
bxa3 {[%clk 0:01:26.5]} 35... Nc4 {[%clk 0:00:17.3]} 36. Rxd4 {[%clk 0:01:24.2]}
36... Ra8 {[%clk 0:00:10.8]} 37. h5 {[%clk 0:01:23]} 37... Nxa3 {[%clk
0:00:10.6]} 38. hxg6 {[%clk 0:01:23.4]} 38... fxg6 {[%clk 0:00:10.3]} 39. Rd7
{[%clk 0:01:22.9]} 39... Nc4 {[%clk 0:00:04]} 40. Rg7+ {[%clk 0:01:19.7]} 40...
Kf8 {[%clk 0:00:04.5]} 41. Re1 {[%clk 0:01:14.1]} 1-0

[Event "*** Titled Tuesday Blitz"]
[Site "Chess.com"]
[Date "2021.04.27"]
[Round "1"]
[White "stolencandy13"]
[Black "canary2016"]
[Result "1-0"]
[WhiteElo "2486"]
[BlackElo "1986"]
[TimeControl "180+1"]
[EndTime "10:06:25 PDT"]
[Termination "stolencandy13 won by checkmate"]

1. d4 {[%clk 0:03:00]} 1... d5 {[%clk 0:02:58.5]} 2. Bf4 {[%clk 0:02:58.5]} 2...
Nf6 {[%clk 0:02:58]} 3. e3 {[%clk 0:02:58.2]} 3... e6 {[%clk 0:02:58]} 4. Nf3
{[%clk 0:02:55.4]} 4... Bd6 {[%clk 0:02:57.8]} 5. Ne5 {[%clk 0:02:51.1]} 5...
O-O {[%clk 0:02:56.5]} 6. Nd2 {[%clk 0:02:50.7]} 6... c5 {[%clk 0:02:56.5]} 7.
c3 {[%clk 0:02:50.5]} 7... Qc7 {[%clk 0:02:56.3]} 8. Bd3 {[%clk 0:02:48.7]} 8...
Nbd7 {[%clk 0:02:56.1]} 9. Ndf3 {[%clk 0:02:45.4]} 9... b6 {[%clk 0:02:54.9]}
10. h3 {[%clk 0:02:39.7]} 10... Bb7 {[%clk 0:02:54.7]} 11. O-O {[%clk
0:02:38.5]} 11... Ne4 {[%clk 0:02:50.1]} 12. Qe2 {[%clk 0:02:34.2]} 12... Ndf6
{[%clk 0:02:44.7]} 13. a4 {[%clk 0:02:27.9]} 13... Rac8 {[%clk 0:02:41.1]} 14.
Rfc1 {[%clk 0:02:25.1]} 14... Rfd8 {[%clk 0:02:38.3]} 15. Bh2 {[%clk 0:01:55.1]}
15... Qe7 {[%clk 0:02:05.2]} 16. a5 {[%clk 0:01:49.9]} 16... Ra8 {[%clk
0:01:56.8]} 17. a6 {[%clk 0:01:48.6]} 17... Bxe5 {[%clk 0:01:53.3]} 18. Nxe5
{[%clk 0:01:47.5]} 18... Bc8 {[%clk 0:01:48.8]} 19. Nc6 {[%clk 0:01:47.2]} 19...
Qd7 {[%clk 0:01:48.8]} 20. Nxd8 {[%clk 0:01:47]} 20... Qxd8 {[%clk 0:01:49.4]}
21. f3 {[%clk 0:01:33]} 21... Nd6 {[%clk 0:01:48.6]} 22. e4 {[%clk 0:01:29.2]}
22... Nde8 {[%clk 0:01:37]} 23. exd5 {[%clk 0:01:26.9]} 23... Nxd5 {[%clk
0:01:33.4]} 24. Be4 {[%clk 0:01:25.6]} 24... Nec7 {[%clk 0:01:31.8]} 25. Rd1
{[%clk 0:01:25.2]} 25... Bxa6 {[%clk 0:01:26.7]} 26. Rxa6 {[%clk 0:01:23.4]}
26... Nxa6 {[%clk 0:01:26.7]} 27. Qxa6 {[%clk 0:01:22.8]} 27... cxd4 {[%clk
0:01:04.4]} 28. Rxd4 {[%clk 0:01:19]} 28... Rc8 {[%clk 0:01:02.3]} 29. Bxd5
{[%clk 0:01:16.4]} 29... exd5 {[%clk 0:01:02.2]} 30. Qd3 {[%clk 0:01:13.6]}
30... Rc5 {[%clk 0:00:55.7]} 31. Bg3 {[%clk 0:01:12.2]} 31... h6 {[%clk
0:00:52.6]} 32. b4 {[%clk 0:01:09.8]} 32... Rc6 {[%clk 0:00:48.6]} 33. Rxd5
{[%clk 0:01:09.8]} 33... Qf6 {[%clk 0:00:46.1]} 34. Rd8+ {[%clk 0:01:09.8]}
34... Qxd8 {[%clk 0:00:44.2]} 35. Qxd8+ {[%clk 0:01:10.7]} 35... Kh7 {[%clk
0:00:44.7]} 36. Qd3+ {[%clk 0:01:10.1]} 36... Kg8 {[%clk 0:00:44.4]} 37. Be5
{[%clk 0:01:10.4]} 37... Re6 {[%clk 0:00:42.1]} 38. f4 {[%clk 0:01:06.8]} 38...
a5 {[%clk 0:00:38.2]} 39. bxa5 {[%clk 0:01:06]} 39... bxa5 {[%clk 0:00:37]} 40.
Qd8+ {[%clk 0:01:06.2]} 40... Kh7 {[%clk 0:00:36.9]} 41. Qxa5 {[%clk 0:01:06.8]}
41... f6 {[%clk 0:00:35.9]} 42. Qd5 {[%clk 0:01:06.7]} 42... Re8 {[%clk
0:00:34.4]} 43. c4 {[%clk 0:01:06.4]} 43... fxe5 {[%clk 0:00:34.3]} 44. fxe5
{[%clk 0:01:07.3]} 44... Rb8 {[%clk 0:00:31.3]} 45. e6 {[%clk 0:01:06.8]} 45...
Rb1+ {[%clk 0:00:31]} 46. Kh2 {[%clk 0:01:07.4]} 46... Re1 {[%clk 0:00:31]} 47.
c5 {[%clk 0:01:06]} 47... Kg6 {[%clk 0:00:30.2]} 48. c6 {[%clk 0:01:05.6]} 48...
Kf6 {[%clk 0:00:31.1]} 49. c7 {[%clk 0:01:04.1]} 49... Rxe6 {[%clk 0:00:30.7]}
50. c8=Q {[%clk 0:01:02.3]} 50... Re7 {[%clk 0:00:31.2]} 51. Qdf5# {[%clk
0:01:00.5]} 1-0